[Event "Early-Titled-Tuesday-Blitz-May-14-2024"]
[Site "Chess.com"]
[Date "2024.05.14"]
[Round "9"]
[White "fmAguilar1"]
[Black "PabloZarnicki"]
[Result "1/2-1/2"]
[WhiteElo "2332"]
[BlackElo "2543"]
[TimeControl "180+1"]
[EndTime "9:45:46 PDT"]
[Termination "Game drawn by repetition"]

1. e4 {[%clk 0:02:58.2]} 1... c5 {[%clk 0:02:58.3]} 2. Nf3 {[%clk 0:02:58.4]}
2... d6 {[%clk 0:02:56.4]} 3. d4 {[%clk 0:02:58.9]} 3... cxd4 {[%clk 0:02:57.3]}
4. Nxd4 {[%clk 0:02:59.7]} 4... Nf6 {[%clk 0:02:58.2]} 5. Nc3 {[%clk 0:03:00.1]}
5... Nc6 {[%clk 0:02:59.1]} 6. Nd5 {[%clk 0:02:57.4]} 6... e6 {[%clk 0:02:57.3]}
7. Nxf6+ {[%clk 0:02:55.9]} 7... Qxf6 {[%clk 0:02:58.2]} 8. Nb5 {[%clk
0:02:55.5]} 8... Qd8 {[%clk 0:02:57.8]} 9. Bf4 {[%clk 0:02:52]} 9... e5 {[%clk
0:02:56.8]} 10. Be3 {[%clk 0:02:52.5]} 10... a6 {[%clk 0:02:54]} 11. Nc3 {[%clk
0:02:53.1]} 11... Be7 {[%clk 0:02:53.6]} 12. Bc4 {[%clk 0:02:52]} 12... O-O
{[%clk 0:02:52.8]} 13. O-O {[%clk 0:02:51.1]} 13... Be6 {[%clk 0:02:52.3]} 14.
Bb3 {[%clk 0:02:49.8]} 14... Rc8 {[%clk 0:02:46]} 15. Qd2 {[%clk 0:02:47.3]}
15... h6 {[%clk 0:02:43.9]} 16. Rad1 {[%clk 0:02:38.5]} 16... Qc7 {[%clk
0:02:28]} 17. f4 {[%clk 0:02:28.9]} 17... exf4 {[%clk 0:02:17.4]} 18. Bxf4
{[%clk 0:02:29.8]} 18... Ne5 {[%clk 0:02:17.6]} 19. Kh1 {[%clk 0:02:20.3]} 19...
b5 {[%clk 0:02:09.8]} 20. a3 {[%clk 0:01:57.4]} 20... Qb7 {[%clk 0:02:07.7]} 21.
Bd5 {[%clk 0:01:54.8]} 21... Qb6 {[%clk 0:02:01.3]} 22. Bxh6 {[%clk 0:01:49.1]}
22... gxh6 {[%clk 0:01:47.8]} 23. Qxh6 {[%clk 0:01:50]} 23... Ng4 {[%clk
0:01:45.8]} 24. Qh5 {[%clk 0:01:32.1]} 24... Nf2+ {[%clk 0:01:11.9]} 25. Rxf2
{[%clk 0:01:27.4]} 25... Qxf2 {[%clk 0:01:12.8]} 26. Bxe6 {[%clk 0:01:21.4]}
26... Rc5 {[%clk 0:00:21.2]} 27. Qg6+ {[%clk 0:01:09.2]} 27... Kh8 {[%clk
0:00:21.1]} 28. Qh6+ {[%clk 0:01:07.5]} 28... Kg8 {[%clk 0:00:21.1]} 29. Qg6+
{[%clk 0:01:08.1]} 29... Kh8 {[%clk 0:00:21.4]} 30. Qh6+ {[%clk 0:01:08.7]}
30... Kg8 {[%clk 0:00:21.7]} 31. Qg6+ {[%clk 0:01:08.7]} 1/2-1/2

[Event "Early-Titled-Tuesday-Blitz-May-14-2024"]
[Site "Chess.com"]
[Date "2024.05.14"]
[Round "9"]
[White "Aswathchess"]
[Black "francyIM"]
[Result "1-0"]
[WhiteElo "2689"]
[BlackElo "2856"]
[TimeControl "180+1"]
[EndTime "9:45:50 PDT"]
[Termination "Aswathchess won by resignation"]

1. d4 {[%clk 0:03:00.9]} 1... Nf6 {[%clk 0:02:59.5]} 2. c4 {[%clk 0:02:59.6]}
2... e6 {[%clk 0:02:58.6]} 3. Nf3 {[%clk 0:02:58]} 3... c5 {[%clk 0:02:58.2]} 4.
d5 {[%clk 0:02:56.8]} 4... exd5 {[%clk 0:02:59.1]} 5. cxd5 {[%clk 0:02:57.7]}
5... d6 {[%clk 0:02:51.4]} 6. Nc3 {[%clk 0:02:57.7]} 6... g6 {[%clk 0:02:52]} 7.
Bf4 {[%clk 0:02:51.2]} 7... a6 {[%clk 0:02:51.3]} 8. h3 {[%clk 0:02:49.2]} 8...
Bg7 {[%clk 0:02:47.8]} 9. e3 {[%clk 0:02:48.7]} 9... O-O {[%clk 0:02:46.8]} 10.
a4 {[%clk 0:02:49.4]} 10... Re8 {[%clk 0:02:43.9]} 11. Be2 {[%clk 0:02:48.8]}
11... Nbd7 {[%clk 0:02:43.9]} 12. O-O {[%clk 0:02:49.3]} 12... Nh5 {[%clk
0:02:43.9]} 13. Bh2 {[%clk 0:02:48.3]} 13... f5 {[%clk 0:02:43.8]} 14. Bxd6
{[%clk 0:02:46.1]} 14... Qb6 {[%clk 0:02:43.3]} 15. Bh2 {[%clk 0:02:40.5]} 15...
Qxb2 {[%clk 0:02:42.6]} 16. Rc1 {[%clk 0:02:12.6]} 16... Bxc3 {[%clk 0:02:40.1]}
17. Rb1 {[%clk 0:02:11.1]} 17... Qa2 {[%clk 0:02:34.3]} 18. Rc1 {[%clk
0:01:56.6]} 18... Bg7 {[%clk 0:02:22]} 19. Bc4 {[%clk 0:01:55.1]} 19... Qb2
{[%clk 0:02:20.8]} 20. d6+ {[%clk 0:01:54.6]} 20... Kh8 {[%clk 0:02:17.7]} 21.
Ng5 {[%clk 0:01:46.8]} 21... h6 {[%clk 0:02:11.3]} 22. Bf7 {[%clk 0:01:37.4]}
22... hxg5 {[%clk 0:02:07.6]} 23. Bxe8 {[%clk 0:01:37.4]} 23... Kh7 {[%clk
0:02:07.6]} 24. Bxd7 {[%clk 0:01:26.9]} 24... Bxd7 {[%clk 0:02:06.9]} 25. Rxc5
{[%clk 0:01:27.3]} 25... Qb4 {[%clk 0:02:00.8]} 26. Rc7 {[%clk 0:01:26.7]} 26...
Bxa4 {[%clk 0:01:59.8]} 27. Qa1 {[%clk 0:01:25.2]} 27... Kh6 {[%clk 0:01:52.7]}
28. Be5 {[%clk 0:01:24.3]} 28... Bxe5 {[%clk 0:01:42.3]} 29. Qxe5 {[%clk
0:01:25.2]} 29... Bc6 {[%clk 0:01:38.9]} 30. d7 {[%clk 0:00:41.7]} 30... Rd8
{[%clk 0:01:34.8]} 31. Rc8 {[%clk 0:00:34.9]} 31... Qf8 {[%clk 0:01:24.4]} 32.
Qb8 {[%clk 0:00:23.3]} 1-0

[Event "Early-Titled-Tuesday-Blitz-May-14-2024"]
[Site "Chess.com"]
[Date "2024.05.14"]
[Round "9"]
[White "Oleksandr_Bortnyk"]
[Black "savitha1030"]
[Result "1-0"]
[WhiteElo "3038"]
[BlackElo "2558"]
[TimeControl "180+1"]
[EndTime "9:45:52 PDT"]
[Termination "Oleksandr_Bortnyk won by checkmate"]

1. e4 {[%clk 0:03:00.9]} 1... c5 {[%clk 0:02:58.4]} 2. c3 {[%clk 0:03:01]} 2...
d5 {[%clk 0:02:55.6]} 3. exd5 {[%clk 0:03:01.9]} 3... Qxd5 {[%clk 0:02:56]} 4.
d4 {[%clk 0:03:02.3]} 4... f6 {[%clk 0:02:55.8]} 5. Be3 {[%clk 0:02:59.4]} 5...
cxd4 {[%clk 0:02:44.4]} 6. cxd4 {[%clk 0:03:00.3]} 6... Nc6 {[%clk 0:02:44.4]}
7. Nc3 {[%clk 0:03:00.4]} 7... Qa5 {[%clk 0:02:43.3]} 8. d5 {[%clk 0:03:00.4]}
8... Ne5 {[%clk 0:02:40.1]} 9. f4 {[%clk 0:03:00.9]} 9... Nd7 {[%clk 0:02:17.7]}
10. Nf3 {[%clk 0:03:01.3]} 10... Nh6 {[%clk 0:02:17.3]} 11. Nd4 {[%clk
0:03:01.7]} 11... a6 {[%clk 0:02:07.9]} 12. Ne6 {[%clk 0:02:54.3]} 12... Nf5
{[%clk 0:02:04.5]} 13. Bf2 {[%clk 0:02:53.1]} 13... Kf7 {[%clk 0:01:49.9]} 14.
Bd3 {[%clk 0:02:52.3]} 14... Nd6 {[%clk 0:01:44.6]} 15. Qh5+ {[%clk 0:02:48.6]}
15... Kg8 {[%clk 0:01:33.2]} 16. O-O {[%clk 0:02:47.4]} 16... Nb8 {[%clk
0:01:17]} 17. f5 {[%clk 0:02:29.9]} 17... Bxe6 {[%clk 0:01:15.4]} 18. fxe6
{[%clk 0:02:27.2]} 18... g6 {[%clk 0:01:01.9]} 19. Qh4 {[%clk 0:02:18.6]} 19...
b5 {[%clk 0:00:59.3]} 20. b4 {[%clk 0:02:08.2]} 20... Qc7 {[%clk 0:00:56.5]} 21.
Rac1 {[%clk 0:02:07.3]} 21... Qd8 {[%clk 0:00:49.8]} 22. Bc5 {[%clk 0:01:59.7]}
22... a5 {[%clk 0:00:46.1]} 23. Bxd6 {[%clk 0:01:48]} 23... Qxd6 {[%clk
0:00:41.6]} 24. Ne4 {[%clk 0:01:48.4]} 24... Qb6+ {[%clk 0:00:40.9]} 25. Kh1
{[%clk 0:01:47.1]} 25... Na6 {[%clk 0:00:31.3]} 26. Nxf6+ {[%clk 0:01:45]} 26...
exf6 {[%clk 0:00:31.7]} 27. Qxf6 {[%clk 0:01:45.9]} 27... Qb7 {[%clk 0:00:29.9]}
28. Bxb5 {[%clk 0:01:34.4]} 28... Qe7 {[%clk 0:00:18.2]} 29. Bxa6 {[%clk
0:01:20.9]} 29... Rxa6 {[%clk 0:00:14]} 30. Qxe7 {[%clk 0:01:15]} 30... Bxe7
{[%clk 0:00:14.9]} 31. Rc8+ {[%clk 0:01:15.2]} 31... Kg7 {[%clk 0:00:14.6]} 32.
Rf7+ {[%clk 0:01:15.4]} 32... Kh6 {[%clk 0:00:15.3]} 33. Rxh8 {[%clk 0:01:15.9]}
33... Bxb4 {[%clk 0:00:14.3]} 34. h4 {[%clk 0:01:06.8]} 34... Rd6 {[%clk
0:00:13.3]} 35. Rhxh7# {[%clk 0:01:06.6]} 1-0

[Event "Early-Titled-Tuesday-Blitz-May-14-2024"]
[Site "Chess.com"]
[Date "2024.05.14"]
[Round "9"]
[White "Shushik"]
[Black "ab-lsv"]
[Result "1-0"]
[WhiteElo "2539"]
[BlackElo "2344"]
[TimeControl "180+1"]
[EndTime "9:45:56 PDT"]
[Termination "Shushik won on time"]

1. e4 {[%clk 0:03:00.9]} 1... c6 {[%clk 0:02:59.6]} 2. d4 {[%clk 0:03:00.5]}
2... d5 {[%clk 0:03:00.5]} 3. e5 {[%clk 0:03:01]} 3... c5 {[%clk 0:03:01.1]} 4.
Nf3 {[%clk 0:03:00.2]} 4... cxd4 {[%clk 0:02:58]} 5. Nxd4 {[%clk 0:03:01.1]}
5... e6 {[%clk 0:02:57]} 6. Bd3 {[%clk 0:02:59.6]} 6... Nc6 {[%clk 0:02:57.1]}
7. Nxc6 {[%clk 0:02:59.1]} 7... bxc6 {[%clk 0:02:57.6]} 8. Nd2 {[%clk
0:02:59.3]} 8... a5 {[%clk 0:02:55.4]} 9. Qe2 {[%clk 0:02:57.7]} 9... Qb6 {[%clk
0:02:46.5]} 10. O-O {[%clk 0:02:56.5]} 10... Ne7 {[%clk 0:02:44.4]} 11. c4
{[%clk 0:02:48.5]} 11... Ng6 {[%clk 0:02:29.4]} 12. Nf3 {[%clk 0:02:43.7]} 12...
Be7 {[%clk 0:02:18.7]} 13. g3 {[%clk 0:02:34.3]} 13... Ba6 {[%clk 0:02:09]} 14.
Be3 {[%clk 0:02:25]} 14... Qb7 {[%clk 0:02:03.8]} 15. b3 {[%clk 0:02:16.6]}
15... a4 {[%clk 0:01:47.6]} 16. Rab1 {[%clk 0:02:16.4]} 16... axb3 {[%clk
0:01:47.5]} 17. Rxb3 {[%clk 0:02:14.9]} 17... Qc8 {[%clk 0:01:39]} 18. c5 {[%clk
0:01:57]} 18... Bxd3 {[%clk 0:01:36.5]} 19. Rxd3 {[%clk 0:01:53.2]} 19... O-O
{[%clk 0:01:35.6]} 20. h4 {[%clk 0:01:51.9]} 20... Qc7 {[%clk 0:01:27.7]} 21.
Bd4 {[%clk 0:01:48.2]} 21... Rfb8 {[%clk 0:00:58.6]} 22. Ng5 {[%clk 0:01:33.3]}
22... h6 {[%clk 0:00:52.6]} 23. Nxf7 {[%clk 0:01:30.7]} 23... Kxf7 {[%clk
0:00:51]} 24. Qh5 {[%clk 0:01:30.5]} 24... Rf8 {[%clk 0:00:18]} 25. f4 {[%clk
0:01:11.9]} 25... Kg8 {[%clk 0:00:09.9]} 26. Qxg6 {[%clk 0:01:11.3]} 26... Qd7
{[%clk 0:00:10.3]} 27. f5 {[%clk 0:01:04.6]} 27... exf5 {[%clk 0:00:08.6]} 28.
e6 {[%clk 0:01:04.9]} 1-0

[Event "Early-Titled-Tuesday-Blitz-May-14-2024"]
[Site "Chess.com"]
[Date "2024.05.14"]
[Round "9"]
[White "Andrei_Skvortsov"]
[Black "platy3"]
[Result "0-1"]
[WhiteElo "2763"]
[BlackElo "2877"]
[TimeControl "180+1"]
[EndTime "9:45:57 PDT"]
[Termination "platy3 won by checkmate"]

1. e4 {[%clk 0:03:00.9]} 1... c5 {[%clk 0:02:59.7]} 2. d4 {[%clk 0:03:00.2]}
2... cxd4 {[%clk 0:02:59.2]} 3. Qxd4 {[%clk 0:03:01.1]} 3... Nc6 {[%clk
0:02:58]} 4. Qd3 {[%clk 0:03:01.7]} 4... Nf6 {[%clk 0:02:57.2]} 5. Nc3 {[%clk
0:03:02]} 5... d6 {[%clk 0:02:49.5]} 6. Nf3 {[%clk 0:03:01.8]} 6... Bg4 {[%clk
0:02:46.2]} 7. h3 {[%clk 0:02:54.6]} 7... Bh5 {[%clk 0:02:43.8]} 8. Be2 {[%clk
0:02:43.9]} 8... e6 {[%clk 0:02:43.6]} 9. Bg5 {[%clk 0:02:35.6]} 9... Be7 {[%clk
0:02:43.1]} 10. O-O-O {[%clk 0:02:34.3]} 10... Qa5 {[%clk 0:02:38.9]} 11. Qe3
{[%clk 0:02:24.5]} 11... O-O {[%clk 0:02:16.1]} 12. Kb1 {[%clk 0:02:19]} 12...
Rac8 {[%clk 0:02:02.6]} 13. Bf4 {[%clk 0:02:16.4]} 13... Ne5 {[%clk 0:01:56.7]}
14. g4 {[%clk 0:01:54.7]} 14... Bg6 {[%clk 0:01:55.8]} 15. Nxe5 {[%clk
0:01:53.3]} 15... dxe5 {[%clk 0:01:55.7]} 16. Bg3 {[%clk 0:01:49.7]} 16... Bc5
{[%clk 0:01:27.9]} 17. Qc1 {[%clk 0:01:25.6]} 17... Bd4 {[%clk 0:01:25]} 18. g5
{[%clk 0:01:23.3]} 18... Nxe4 {[%clk 0:01:21.2]} 19. Nxe4 {[%clk 0:01:00.2]}
19... Bxe4 {[%clk 0:01:22.1]} 20. Bd3 {[%clk 0:00:58.9]} 20... Bd5 {[%clk
0:01:22.3]} 21. c4 {[%clk 0:00:50.1]} 21... Bxh1 {[%clk 0:01:20.8]} 22. Rxh1
{[%clk 0:00:51]} 22... b5 {[%clk 0:01:20.6]} 23. b3 {[%clk 0:00:42.2]} 23...
bxc4 {[%clk 0:01:19.3]} 24. Bxc4 {[%clk 0:00:42.1]} 24... Rc6 {[%clk 0:01:10.9]}
25. Qe1 {[%clk 0:00:28.4]} 25... Qb6 {[%clk 0:01:10.3]} 26. Qe2 {[%clk
0:00:27.6]} 26... Rfc8 {[%clk 0:01:08.6]} 27. Rc1 {[%clk 0:00:28]} 27... a5
{[%clk 0:01:05.4]} 28. Rc2 {[%clk 0:00:22.7]} 28... a4 {[%clk 0:01:05.1]} 29.
Qd3 {[%clk 0:00:23.3]} 29... axb3 {[%clk 0:01:04.3]} 30. axb3 {[%clk 0:00:24.2]}
30... Qa5 {[%clk 0:01:02.5]} 31. Ra2 {[%clk 0:00:16.3]} 31... Rxc4 {[%clk
0:01:00.2]} 32. Rxa5 {[%clk 0:00:09.5]} 32... Rc1+ {[%clk 0:01:00]} 33. Ka2
{[%clk 0:00:10.2]} 33... Ra1# {[%clk 0:01:00.5]} 0-1

[Event "Early-Titled-Tuesday-Blitz-May-14-2024"]
[Site "Chess.com"]
[Date "2024.05.14"]
[Round "9"]
[White "Lion-Al-Messi"]
[Black "Anton_Demchenko"]
[Result "0-1"]
[WhiteElo "2599"]
[BlackElo "2866"]
[TimeControl "180+1"]
[EndTime "9:46:04 PDT"]
[Termination "Anton_Demchenko won by checkmate"]

1. e4 {[%clk 0:03:00.9]} 1... e5 {[%clk 0:03:00.7]} 2. Nf3 {[%clk 0:03:00.9]}
2... Nc6 {[%clk 0:03:01.3]} 3. Bb5 {[%clk 0:03:01.3]} 3... a6 {[%clk 0:03:01.9]}
4. Ba4 {[%clk 0:03:01.7]} 4... Nge7 {[%clk 0:03:02.5]} 5. O-O {[%clk 0:02:58.3]}
5... Ng6 {[%clk 0:03:03]} 6. Nc3 {[%clk 0:02:56.4]} 6... Bc5 {[%clk 0:03:01]} 7.
Nd5 {[%clk 0:02:56.4]} 7... O-O {[%clk 0:02:55.3]} 8. c3 {[%clk 0:02:56.7]} 8...
d6 {[%clk 0:02:51.5]} 9. d4 {[%clk 0:02:56.6]} 9... Ba7 {[%clk 0:02:52.1]} 10.
h3 {[%clk 0:02:55.2]} 10... Kh8 {[%clk 0:02:48.4]} 11. Be3 {[%clk 0:02:54.3]}
11... f5 {[%clk 0:02:42.5]} 12. exf5 {[%clk 0:02:51.1]} 12... Bxf5 {[%clk
0:02:43]} 13. dxe5 {[%clk 0:02:51.7]} 13... Ncxe5 {[%clk 0:02:31.7]} 14. Nd4
{[%clk 0:02:42.2]} 14... Bxh3 {[%clk 0:02:06.3]} 15. gxh3 {[%clk 0:02:34.1]}
15... Bxd4 {[%clk 0:01:48.6]} 16. cxd4 {[%clk 0:02:31.7]} 16... Nf3+ {[%clk
0:01:49]} 17. Kh1 {[%clk 0:02:22.4]} 17... Qc8 {[%clk 0:01:49.2]} 18. Kg2 {[%clk
0:02:12.7]} 18... Ngh4+ {[%clk 0:01:48.4]} 19. Kg3 {[%clk 0:02:12.4]} 19... Qe6
{[%clk 0:01:42]} 20. Qd3 {[%clk 0:01:05.8]} 20... Qxd5 {[%clk 0:01:33.2]} 21.
Bd7 {[%clk 0:01:05.8]} 21... Ne5 {[%clk 0:01:16.6]} 22. Qe2 {[%clk 0:00:58.2]}
22... Qg2+ {[%clk 0:01:14.5]} 23. Kxh4 {[%clk 0:00:57.7]} 23... Rf4+ {[%clk
0:00:24.7]} 24. Bg4 {[%clk 0:00:51.2]} 24... Rxg4+ {[%clk 0:00:25]} 25. hxg4
{[%clk 0:00:48.5]} 25... Qh2+ {[%clk 0:00:13.2]} 26. Kg5 {[%clk 0:00:48.5]}
26... Qh6+ {[%clk 0:00:09.2]} 27. Kf5 {[%clk 0:00:48.6]} 27... Rf8+ {[%clk
0:00:09.9]} 28. Ke4 {[%clk 0:00:48.7]} 28... Qg6+ {[%clk 0:00:10.7]} 29. Kd5
{[%clk 0:00:45.1]} 29... c6# {[%clk 0:00:11.4]} 0-1

[Event "Early-Titled-Tuesday-Blitz-May-14-2024"]
[Site "Chess.com"]
[Date "2024.05.14"]
[Round "9"]
[White "agvega14"]
[Black "Anu-triz"]
[Result "1-0"]
[WhiteElo "2166"]
[BlackElo "2275"]
[TimeControl "180+1"]
[EndTime "9:46:06 PDT"]
[Termination "agvega14 won by resignation"]

1. e4 {[%clk 0:03:00.9]} 1... e5 {[%clk 0:02:58.9]} 2. Nf3 {[%clk 0:03:00]} 2...
Nc6 {[%clk 0:02:58.8]} 3. d4 {[%clk 0:02:59.7]} 3... exd4 {[%clk 0:02:57.9]} 4.
Bc4 {[%clk 0:03:00.3]} 4... Nf6 {[%clk 0:02:56.8]} 5. e5 {[%clk 0:02:59.6]} 5...
Ne4 {[%clk 0:02:56.8]} 6. O-O {[%clk 0:02:58.5]} 6... Be7 {[%clk 0:02:52.2]} 7.
Re1 {[%clk 0:02:56.6]} 7... Nc5 {[%clk 0:02:51.4]} 8. Nxd4 {[%clk 0:02:53.3]}
8... O-O {[%clk 0:02:45.5]} 9. Nf5 {[%clk 0:02:42]} 9... Ne6 {[%clk 0:02:42.7]}
10. Nxe7+ {[%clk 0:02:40.3]} 10... Qxe7 {[%clk 0:02:41.6]} 11. Nc3 {[%clk
0:02:39.9]} 11... Qh4 {[%clk 0:02:27.8]} 12. Re4 {[%clk 0:02:32.5]} 12... Qd8
{[%clk 0:02:19.4]} 13. Be3 {[%clk 0:02:24.7]} 13... Ne7 {[%clk 0:02:05.5]} 14.
Qh5 {[%clk 0:02:12]} 14... g6 {[%clk 0:02:02.6]} 15. Qh3 {[%clk 0:02:03.8]}
15... Nf5 {[%clk 0:01:54.1]} 16. Nd5 {[%clk 0:01:54.9]} 16... h5 {[%clk
0:01:21.5]} 17. Nf6+ {[%clk 0:01:52.5]} 17... Kg7 {[%clk 0:01:20.8]} 18. Nxh5+
{[%clk 0:01:44.2]} 18... gxh5 {[%clk 0:01:10.6]} 19. Qxf5 {[%clk 0:01:44]} 19...
d5 {[%clk 0:01:04.9]} 20. exd6 {[%clk 0:01:40]} 20... Qxd6 {[%clk 0:00:58.5]}
21. Qxh5 {[%clk 0:01:08.4]} 21... f5 {[%clk 0:00:52.6]} 22. Qh6+ {[%clk
0:01:00.6]} 22... Kf7 {[%clk 0:00:50.3]} 23. Bg5 {[%clk 0:00:34.2]} 23... b5
{[%clk 0:00:40.8]} 24. Qf6+ {[%clk 0:00:23.8]} 24... Kg8 {[%clk 0:00:32.9]} 25.
Bxe6+ {[%clk 0:00:20.3]} 25... Bxe6 {[%clk 0:00:33.8]} 26. Qxe6+ {[%clk
0:00:19.8]} 26... Qxe6 {[%clk 0:00:33.4]} 27. Rxe6 {[%clk 0:00:20.7]} 1-0

[Event "Early-Titled-Tuesday-Blitz-May-14-2024"]
[Site "Chess.com"]
[Date "2024.05.14"]
[Round "9"]
[White "Revan_2002"]
[Black "biveklama"]
[Result "1-0"]
[WhiteElo "2745"]
[BlackElo "2577"]
[TimeControl "180+1"]
[EndTime "9:46:10 PDT"]
[Termination "Revan_2002 won on time"]

1. d4 {[%clk 0:03:00.9]} 1... d5 {[%clk 0:03:00.3]} 2. c4 {[%clk 0:03:01.3]}
2... c6 {[%clk 0:03:00.9]} 3. Nf3 {[%clk 0:03:01.7]} 3... Nf6 {[%clk 0:03:01.6]}
4. e3 {[%clk 0:03:01.7]} 4... Bg4 {[%clk 0:03:00.9]} 5. h3 {[%clk 0:03:00.6]}
5... Bxf3 {[%clk 0:02:59.4]} 6. Qxf3 {[%clk 0:03:01.5]} 6... e6 {[%clk
0:02:58.5]} 7. Nc3 {[%clk 0:02:55.3]} 7... Nbd7 {[%clk 0:02:58.1]} 8. Bd3 {[%clk
0:02:51.9]} 8... Bb4 {[%clk 0:02:53.7]} 9. O-O {[%clk 0:02:51.4]} 9... O-O
{[%clk 0:02:41.5]} 10. e4 {[%clk 0:02:51.2]} 10... Bxc3 {[%clk 0:02:35.6]} 11.
bxc3 {[%clk 0:02:52.1]} 11... dxe4 {[%clk 0:02:34.6]} 12. Bxe4 {[%clk 0:02:53]}
12... Nxe4 {[%clk 0:02:35.2]} 13. Qxe4 {[%clk 0:02:53.9]} 13... Nf6 {[%clk
0:02:25]} 14. Qf3 {[%clk 0:02:53.3]} 14... b5 {[%clk 0:02:11.7]} 15. Qxc6 {[%clk
0:02:46.8]} 15... bxc4 {[%clk 0:02:11.5]} 16. Qxc4 {[%clk 0:02:46.8]} 16... Rc8
{[%clk 0:02:09.7]} 17. Qd3 {[%clk 0:02:46.1]} 17... Qc7 {[%clk 0:02:04.7]} 18.
Bd2 {[%clk 0:02:46.1]} 18... Nd5 {[%clk 0:02:00.9]} 19. Rfc1 {[%clk 0:02:44.1]}
19... Qc4 {[%clk 0:02:00.3]} 20. Qg3 {[%clk 0:02:42.5]} 20... Rfe8 {[%clk
0:01:20.4]} 21. Bh6 {[%clk 0:02:41.1]} 21... g6 {[%clk 0:01:19.8]} 22. Bd2
{[%clk 0:02:39.6]} 22... Qe2 {[%clk 0:01:08.5]} 23. Be1 {[%clk 0:02:39.5]} 23...
Rc4 {[%clk 0:01:07]} 24. Rab1 {[%clk 0:02:28.4]} 24... Qxa2 {[%clk 0:00:55.3]}
25. Qf3 {[%clk 0:02:28.7]} 25... Qa3 {[%clk 0:00:45.5]} 26. Ra1 {[%clk
0:02:27.7]} 26... Qe7 {[%clk 0:00:42.9]} 27. Ra6 {[%clk 0:02:25.7]} 27... Rec8
{[%clk 0:00:41.8]} 28. Rca1 {[%clk 0:02:22.7]} 28... R8c7 {[%clk 0:00:41.6]} 29.
R6a3 {[%clk 0:02:18.9]} 29... Kg7 {[%clk 0:00:36.2]} 30. Bd2 {[%clk 0:02:17.4]}
30... h6 {[%clk 0:00:24.6]} 31. Qg3 {[%clk 0:02:03.8]} 31... g5 {[%clk
0:00:15.6]} 32. h4 {[%clk 0:02:01.2]} 32... f6 {[%clk 0:00:13.2]} 33. f4 {[%clk
0:02:00.7]} 33... Kg6 {[%clk 0:00:11.6]} 34. fxg5 {[%clk 0:01:59.6]} 34... hxg5
{[%clk 0:00:12.5]} 35. Qd3+ {[%clk 0:02:00]} 35... f5 {[%clk 0:00:11.8]} 36.
Bxg5 {[%clk 0:01:59.5]} 36... Qd6 {[%clk 0:00:10.4]} 37. Bd2 {[%clk 0:01:57.3]}
37... a5 {[%clk 0:00:05.4]} 38. Qf3 {[%clk 0:01:42]} 38... Qe7 {[%clk
0:00:03.7]} 39. h5+ {[%clk 0:01:38]} 39... Kh7 {[%clk 0:00:03.7]} 40. Qg3 {[%clk
0:01:29]} 40... Qg7 {[%clk 0:00:02.1]} 41. Qd6 {[%clk 0:01:24.1]} 1-0

[Event "Early-Titled-Tuesday-Blitz-May-14-2024"]
[Site "Chess.com"]
[Date "2024.05.14"]
[Round "9"]
[White "maximnovik"]
[Black "jinbojinbo"]
[Result "1-0"]
[WhiteElo "2544"]
[BlackElo "2640"]
[TimeControl "180+1"]
[EndTime "9:46:10 PDT"]
[Termination "maximnovik won by resignation"]

1. e4 {[%clk 0:03:00.7]} 1... e5 {[%clk 0:02:58]} 2. Nf3 {[%clk 0:03:00.6]} 2...
Nc6 {[%clk 0:02:58.3]} 3. Bc4 {[%clk 0:03:01.2]} 3... Bc5 {[%clk 0:02:56.4]} 4.
d3 {[%clk 0:03:01.4]} 4... Nf6 {[%clk 0:02:56.7]} 5. h3 {[%clk 0:03:01.9]} 5...
O-O {[%clk 0:02:53.5]} 6. Nc3 {[%clk 0:02:54]} 6... a6 {[%clk 0:02:44.1]} 7. a3
{[%clk 0:02:53.1]} 7... b5 {[%clk 0:02:36.8]} 8. Ba2 {[%clk 0:02:51.4]} 8... Be7
{[%clk 0:02:36]} 9. Nd5 {[%clk 0:02:44.1]} 9... d6 {[%clk 0:02:32.1]} 10. c3
{[%clk 0:02:44.1]} 10... Bb7 {[%clk 0:02:29]} 11. O-O {[%clk 0:02:42.8]} 11...
Qd7 {[%clk 0:02:26.3]} 12. Re1 {[%clk 0:02:40.5]} 12... h6 {[%clk 0:02:18.5]}
13. d4 {[%clk 0:02:39.3]} 13... exd4 {[%clk 0:02:14.4]} 14. cxd4 {[%clk
0:02:37.5]} 14... Nxd5 {[%clk 0:01:53.4]} 15. Bxd5 {[%clk 0:02:37.1]} 15... Nd8
{[%clk 0:01:53]} 16. Bxb7 {[%clk 0:02:22.3]} 16... Nxb7 {[%clk 0:01:53.9]} 17.
Be3 {[%clk 0:02:20.7]} 17... d5 {[%clk 0:01:44.3]} 18. Ne5 {[%clk 0:02:17.1]}
18... Qe6 {[%clk 0:01:39.6]} 19. exd5 {[%clk 0:02:01.7]} 19... Qxd5 {[%clk
0:01:40.5]} 20. Rc1 {[%clk 0:02:01.7]} 20... c5 {[%clk 0:01:34.5]} 21. Qg4
{[%clk 0:01:44.6]} 21... cxd4 {[%clk 0:01:19.8]} 22. Bxh6 {[%clk 0:01:41.8]}
22... Bf6 {[%clk 0:01:00.4]} 23. Nd7 {[%clk 0:01:39.3]} 23... Qd6 {[%clk
0:00:57.9]} 24. Nxf8 {[%clk 0:01:34.3]} 24... Qxf8 {[%clk 0:00:58.7]} 25. Bg5
{[%clk 0:01:31.5]} 25... Bxg5 {[%clk 0:00:55.3]} 26. Qxg5 {[%clk 0:01:31.7]}
26... Na5 {[%clk 0:00:54.5]} 27. Rc7 {[%clk 0:01:22.2]} 27... Re8 {[%clk
0:00:44]} 28. Rxe8 {[%clk 0:01:19.1]} 28... Qxe8 {[%clk 0:00:44.9]} 29. Qf5
{[%clk 0:01:18.2]} 29... g6 {[%clk 0:00:34.2]} 30. Rc8 {[%clk 0:01:16]} 30...
gxf5 {[%clk 0:00:34.4]} 31. Rxe8+ {[%clk 0:01:15.6]} 31... Kg7 {[%clk
0:00:35.3]} 32. Rd8 {[%clk 0:01:15.5]} 32... Nb3 {[%clk 0:00:35.5]} 33. Kf1
{[%clk 0:01:14]} 33... Kf6 {[%clk 0:00:34.9]} 34. Rd6+ {[%clk 0:01:10.3]} 34...
Ke5 {[%clk 0:00:34.4]} 35. Rxa6 {[%clk 0:01:10.5]} 35... d3 {[%clk 0:00:34.2]}
36. Rb6 {[%clk 0:01:08.9]} 36... Ke4 {[%clk 0:00:29.9]} 37. Ke1 {[%clk
0:01:04.1]} 37... Nd4 {[%clk 0:00:25.7]} 38. Rb8 {[%clk 0:01:00]} 38... Nb3
{[%clk 0:00:24.5]} 39. Rxb5 {[%clk 0:00:55.2]} 1-0